fUST/lending_fUST_20240112
["ID","MTS","AMOUNT","RATE_DAILY","PERIOD"]
[311275663,1705009849235,-28717.00000004,0.000325,20]
[311275666,1705009849258,-321007.63151317,0.000325,20]
[311275668,1705009849268,-17116.13856339,0.000325,5]
[311275670,1705009849278,-877.35860927,0.000325,7]
[311275672,1705009849287,-175.47172185,0.000325,7]
[311275674,1705009849297,-209.63836092,0.000325,7]
[311275686,1705009849397,-1096.81981595,0.000325,7]
[311275688,1705009849406,-167.71068874,0.000325,7]
[311275690,1705009849416,-429.19761069,0.000325,7]
[311275692,1705009849426,-250.794503,0.000325,14]
[311275693,1705009849435,-1712.11417,0.000325,2]
[311275694,1705009849444,-1712.11417,0.000325,2]
[311275695,1705009849453,-154.09671267,0.0003251,7]
[311275696,1705009849462,-151.0,0.00032539,2]
[311275697,1705009849471,-350.0,0.00032602,2]
[311275698,1705009849479,-500.0,0.00032602,2]
[311275699,1705009849489,-535.68,0.00032602,2]
[311275700,1705009849497,-957.08,0.00032602,2]
[311275701,1705009849507,-500.0,0.00032602,2]
[311275702,1705009849516,-500.0,0.00032602,2]
[311275703,1705009849525,-500.0,0.00032602,2]
[311275704,1705009849534,-10626.7,0.00032602,2]
[311275705,1705009849543,-500.0,0.00032602,2]
[311275706,1705009849553,-500.0,0.00032602,2]
[311275708,1705009849562,-2552.42,0.00032602,2]
[311275709,1705009849571,-1008.42,0.00032602,2]
[311275711,1705009849581,-1462.18,0.00032602,2]
[311275713,1705009849590,-555.35,0.00032602,2]
[311275715,1705009849599,-654.56,0.00032602,2]
[311275717,1705009849608,-303.26743961,0.00032602,2]
[311275719,1705009849617,-4925.07,0.00032602,2]
[311275722,1705009849628,-500.0,0.00032602,2]
[311275724,1705009849637,-500.0,0.00032602,2]
[311275726,1705009849647,-500.0,0.00032602,2]
[311275728,1705009849656,-500.0,0.00032602,2]
[311275730,1705009849666,-500.0,0.00032602,2]
[311275732,1705009849675,-500.0,0.00032602,2]
[311275734,1705009849684,-583.82,0.00032602,2]
[311275736,1705009849693,-910.72,0.00032602,2]
[311275737,1705009849703,-500.0,0.00032602,2]
[311275740,1705009849712,-804.29,0.00032602,2]
[311275741,1705009849721,-1479.34,0.00032602,2]
[311275744,1705009849730,-154.09671267,0.00032648,7]
[311275746,1705009849740,-152.31739519,0.00032656,7]
[311275747,1705009849750,-154.09671267,0.00032667,7]
[311275749,1705009849759,-184.821863,0.00032723,2]
[311275752,1705009849769,-152.788532,0.00032723,2]
[311275753,1705009849779,-152.788533,0.00032723,2]
[311275756,1705009849788,-177.374271,0.00032723,2]
[311275758,1705009849797,-187.291068,0.00032723,2]
[311275760,1705009849806,-999.505451,0.00032724,2]
[311275761,1705009849815,-754.333647,0.00032724,2]
[311275763,1705009849825,-203.912015,0.00032724,2]
[311275765,1705009849834,-172.905716,0.00032724,2]
[311275767,1705009849843,-152.31739519,0.00032763,7]
[311275769,1705009849852,-178.96994878,0.00032787,6]
[311275771,1705009849861,-200.0,0.000328,2]
[311275773,1705009849870,-154.09671267,0.00032862,7]
[311275775,1705009849880,-368.54793277,0.00032876,7]
[311275777,1705009849889,-357.03949577,0.00032876,7]
[311275779,1705009849898,-500.0,0.00032876,7]
[311275781,1705009849907,-500.0,0.00032876,7]
[311275783,1705009849916,-500.0,0.00032876,7]
[311275785,1705009849925,-500.0,0.00032876,7]
[311275787,1705009849934,-489.75378351,0.00032876,7]
[311275789,1705009849943,-500.0,0.00032876,7]
[311275791,1705009849952,-209.28371367,0.00032876,7]
[311275793,1705009849961,-500.0,0.00032876,7]
[311275795,1705009849970,-648.19023052,0.00032876,7]
[311275797,1705009849980,-500.0,0.00032876,7]
[311275800,1705009849991,-500.0,0.00032876,7]
[311275802,1705009850000,-250.0,0.00032876,10]
[311275804,1705009850010,-500.0,0.00032876,2]
[311275806,1705009850019,-535.68,0.00032876,2]
[311275807,1705009850030,-957.08,0.00032876,2]
[311275810,1705009850040,-500.0,0.00032876,2]
[311275811,1705009850050,-500.0,0.00032876,2]
[311275813,1705009850059,-500.0,0.00032876,2]
[311275815,1705009850069,-10626.7,0.00032876,2]
[311275817,1705009850079,-500.0,0.00032876,2]
[311275819,1705009850088,-500.0,0.00032876,2]
[311275821,1705009850097,-2552.42,0.00032876,2]
[311275823,1705009850106,-1008.42,0.00032876,2]
[311275825,1705009850116,-1462.18,0.00032876,2]
[311275828,1705009850126,-555.35,0.00032876,2]
[311275830,1705009850136,-654.56,0.00032876,2]
[311275831,1705009850145,-4925.07,0.00032876,2]
[311275833,1705009850155,-500.0,0.00032876,2]
[311275836,1705009850165,-546.17506331,0.00032876,2]
[311275838,1705009850176,-500.0,0.00032876,2]
[311275840,1705009850186,-500.0,0.00032876,2]
[311275842,1705009850195,-500.0,0.00032876,2]
[311275844,1705009850204,-500.0,0.00032876,2]
[311275846,1705009850214,-500.0,0.00032876,2]
[311275847,1705009850223,-583.82,0.00032876,2]
[311275849,1705009850233,-910.72,0.00032876,2]
[311275851,1705009850242,-1000.0,0.00032876,2]
[311275854,1705009850252,-500.0,0.00032876,2]
[311275856,1705009850261,-804.29,0.00032876,2]
[311275858,1705009850271,-1479.34,0.00032876,2]
[311275859,1705009850282,-1000.0,0.00032877,2]
[311275862,1705009850292,-155.0,0.00032877,2]
[311275863,1705009850301,-154.09671267,0.00032899,7]
[311275866,1705009850311,-200.0,0.000329,2]
[311275867,1705009850320,-588.0856583,0.00032907,2]
[311275868,1705009850330,-167.02398432,0.00032936,4]
[311275869,1705009850340,-282.0,0.0003296,30]
[311275870,1705009850349,-7932.0,0.00032969,30]
[311275871,1705009850358,-282.0,0.0003297,30]
[311275872,1705009850368,-7932.0,0.00032979,30]
[311275874,1705009850377,-282.0,0.0003298,30]
[311275875,1705009850387,-160.0,0.0003298,3]
[311275876,1705009850396,-3614.02222096,0.00032989,30]
[311275877,1705009850409,-4317.97777904,0.00032989,30]
[311275878,1705009850418,-218.71041538,0.00033,3]
[311275879,1705009850429,-469.45757997,0.00033,3]
[311275880,1705009850438,-3118.9957051,0.00033,10]
[311275900,1705009850892,-302.78307517,0.00030135,4]
[311275901,1705009850902,-500.0,0.00030136,2]
[311275902,1705009850911,-924.436514,0.00030684,2]
[311275903,1705009850921,-924.436514,0.00031232,2]
[311275904,1705009850930,-924.436514,0.00031406,2]
[311275905,1705009850939,-924.436514,0.000325,2]
[311275906,1705009850948,-196.37674439,0.00033,10]
[311275907,1705009850959,-1243.62755051,0.00033,10]
[311275908,1705009850969,-2806.37244949,0.00033,2]
[311275943,1705009868541,292.67088821,0.00022,4]
[311275995,1705010022263,5051.48770919,0.00011246,2]
[311275996,1705010022292,10000.0,0.00011246,2]
[311276000,1705010041395,2262.38273985,0.000253,5]
[311276010,1705010064707,-3738.72601468,0.00011242,2]
[311276011,1705010064728,-13694.49776337,0.00011243,2]
[311276012,1705010064749,-2927.79076094,0.00011243,2]
[311276013,1705010064768,-7988.52269899,0.00011243,2]
[311276014,1705010064788,-160.71702813,0.00011243,2]
[311276015,1705010064808,-1240.12646753,0.00011243,2]
[311276016,1705010064828,-469.71701685,0.00011243,2]
[311276017,1705010064847,-2070.70229933,0.00011243,2]
[311276018,1705010064868,-301.352632,0.00011244,2]
[311276020,1705010064887,-2708.97417906,0.00011244,2]
[311276021,1705010064907,-68062.87313912,0.00011244,2]
[311276029,1705010149339,-5371.54803427,0.00011124,2]
[311276030,1705010149360,-301.352632,0.00011124,2]
[311276031,1705010149380,-160.71702813,0.00011125,2]
[311276032,1705010149399,-155.0418613,0.00011125,2]
[311276033,1705010149419,-155.0418613,0.00011125,2]
[311276034,1705010149439,-156.66039464,0.00011125,2]
[311276035,1705010149458,-155.0418613,0.00011125,2]
[311276036,1705010149479,-20836.46606025,0.00011125,2]
[311276037,1705010149499,-20865.20196494,0.00011125,2]
[311276038,1705010149519,-7945.04739538,0.00011126,2]
[311276039,1705010149539,-155.0418613,0.00011126,2]
[311276040,1705010149559,-13694.49776337,0.00011126,2]
[311276041,1705010149579,-245.88461104,0.00011126,2]
[311276042,1705010149599,-155.0418613,0.00011126,2]
[311276043,1705010149619,-155.0418613,0.00011126,2]
[311276044,1705010149639,-1240.12646753,0.00011126,2]
[311276045,1705010149660,-155.0418613,0.00011127,2]
[311276046,1705010149681,-7988.52269899,0.00011127,2]
[311276047,1705010149700,-521.06936744,0.00011127,2]
[311276048,1705010149721,-1989.87267074,0.00011128,2]
[311276049,1705010149741,-525.71054623,0.00011128,2]
[311276050,1705010149761,-874.79068657,0.00011129,2]
[311276051,1705010149783,-1291.19265067,0.00011129,2]
[311276052,1705010149802,-1181.69348832,0.00011129,2]
[311276053,1705010149824,-15883.65187876,0.00011129,2]
[311276054,1705010149844,-155.0418613,0.0001124,2]
[311276055,1705010149864,-313.03128997,0.0001124,2]
[311276056,1705010149883,-236.23284125,0.0001124,2]
[311276057,1705010149903,-19663.58309656,0.0001124,2]
[311276058,1705010149922,-166.35364662,0.00011241,2]
[311276059,1705010149942,-162.78960189,0.00011241,2]
[311276060,1705010149963,-12933.66829404,0.00011241,2]
[311276061,1705010162969,155.0418613,0.00010011,2]
[311276065,1705010185096,155.0418613,0.00010114,2]
[311276068,1705010206956,155.0418613,0.00010114,2]
[311276071,1705010222959,155.0418613,0.00010114,2]
[311276072,1705010224932,-1220.46777881,0.00011108,2]
[311276073,1705010224956,-901.83243089,0.00011109,2]
[311276074,1705010224978,-1002.6997903,0.00011109,2]
[311276076,1705010244955,155.0418613,0.0001,2]
[311276080,1705010268968,155.04496304,0.0001,2]
[311276081,1705010284982,155.04496304,0.0001,2]
[311276082,1705010295016,-521.18657264,0.00011103,2]
[311276083,1705010295036,-5136.81342736,0.00011103,2]
[311276084,1705010300963,155.0418613,0.0001,2]
[311276087,1705010320969,155.0418613,0.0001,2]
[311276089,1705010338971,155.04496304,0.0001,2]
[311276090,1705010354978,155.04341216,0.0001,2]
[311276093,1705010376999,155.04341216,0.0001,2]
[311276096,1705010393030,155.04341216,0.0001,2]
[311276104,1705010418983,155.04341216,0.0001,2]
[311276108,1705010438983,155.04341216,0.0001,2]
[311276117,1705010458985,155.04341216,0.0001,2]
[311276118,1705010474987,155.04496304,0.0001,2]
[311276121,1705010494993,155.04496304,0.0001,2]
[311276124,1705010518985,155.04651395,0.0001,2]
[311276127,1705010541000,155.04651395,0.0001,2]
[311276129,1705010545349,24900.0,0.00010076,2]
[311276131,1705010547198,209.45336616,0.00010976,2]
[311276132,1705010549713,2030.38673937,0.00010075,2]
[311276133,1705010551706,521.18657264,0.00010075,2]
[311276134,1705010553123,196.86070104,0.00010075,2]
[311276138,1705010560993,155.04651395,0.0001,2]
[311276139,1705010577009,155.04651395,0.0001,2]
[311276142,1705010595040,155.04651395,0.0001,2]
[311276144,1705010612999,155.04651395,0.0001,2]
[311276146,1705010629093,155.04651395,0.0001,2]
[311276150,1705010650994,155.04651395,0.0001,2]
[311276152,1705010669014,155.04651395,0.0001,2]
[311276153,1705010687010,155.04651395,0.0001,2]
[311276155,1705010703007,155.04651395,0.0001,2]
[311276157,1705010725007,155.04651395,0.0001,2]
[311276158,1705010729946,155.10057155,0.0001,2]
[311276159,1705010732518,23843.18286898,0.0001094,2]
[311276160,1705010741003,155.04651395,0.0001,2]
[311276161,1705010759197,155.04651395,0.0001,2]
[311276162,1705010779008,155.04651395,0.0001,2]
[311276163,1705010797006,155.04651395,0.0001,2]
[311276165,1705010815007,155.04651395,0.0001,2]
[311276197,1705010947345,307.1982704,0.00010918,2]
[311276236,1705011023545,4606.29388509,0.00011,2]
[311276237,1705011023929,155.0480649,0.00011,2]
[311276238,1705011024114,155.0480649,0.00011,2]
[311276240,1705011024588,615.66230742,0.00011,2]
[311276241,1705011024619,155.0480649,0.00011,2]
[311276242,1705011025378,594.07215949,0.00011,2]
[311276243,1705011025467,901.83243089,0.00011,2]
[311276244,1705011025622,155.04651395,0.00011,2]
[311276246,1705011028004,1693.74494191,0.00011,2]
[311276247,1705011028356,170.50663149,0.00011,2]
[311276248,1705011028604,19829.54482794,0.00011,2]
[311276249,1705011030225,1291.19265067,0.00011,2]
[311276250,1705011030380,2035.15445086,0.00011,2]
[311276251,1705011031537,155.04651395,0.00011,2]
[311276297,1705011032111,-156.66039464,0.00011001,2]
[311276299,1705011032121,-260.34948307,0.00011001,2]
[311276300,1705011032130,-155.0480649,0.00011001,2]
[311276302,1705011032139,-301.352632,0.00011001,2]
[311276303,1705011032149,-166.65114347,0.00011001,2]
[311276305,1705011032158,-525.71054623,0.00011001,2]
[311276307,1705011032168,-1030.79768525,0.00011001,2]
[311276309,1705011032177,-1576.24044161,0.00011001,2]
[311276311,1705011032186,-2708.97417906,0.00011001,2]
[311276313,1705011032195,-874.79068657,0.00011001,2]
[311276315,1705011032203,-260.63257169,0.00011001,2]
[311276317,1705011032212,-20865.20196494,0.00011001,2]
[311276319,1705011032221,-155.0480649,0.00011002,2]
[311276321,1705011032231,-155.0480649,0.00011002,2]
[311276323,1705011032240,-587.15396194,0.00011002,2]
[311276325,1705011032249,-178.55476254,0.00011002,2]
[311276327,1705011032259,-328.9312618,0.00011002,2]
[311276329,1705011032268,-155.0480649,0.00011002,2]
[311276330,1705011032277,-155.0480649,0.00011002,2]
[311276332,1705011032287,-253.60420254,0.00011002,2]
[311276334,1705011032297,-1240.12646753,0.00011002,2]
[311276341,1705011032306,-1220.46777881,0.00011003,2]
[311276344,1705011032438,-245.88461104,0.00011003,2]
[311276345,1705011032448,-155.0480649,0.00011003,2]
[311276347,1705011032457,-166.35364662,0.00011003,2]
[311276348,1705011032466,-2652.49883384,0.00011003,2]
[311276349,1705011032475,-1737.54470302,0.00011003,2]
[311276350,1705011032485,-466.77120588,0.00011004,2]
[311276351,1705011032494,-3738.72601468,0.00011004,2]
[311276352,1705011032503,-521.18657264,0.00011004,2]
[311276353,1705011032516,-521.18657264,0.00011004,2]
[311276354,1705011032525,-24646.36791809,0.00011004,2]
[311276355,1705011032794,521.06936744,0.00011,2]
[311276356,1705011033565,637.26620041,0.00011,2]
[311276357,1705011035561,155.04651395,0.00011,2]
[311276358,1705011036555,7945.04739538,0.00011,2]
[311276359,1705011036820,213.00235315,0.00011,2]
[311276395,1705011038209,-155.04651395,0.00011003,2]
[311276397,1705011038218,-839.54596089,0.00011004,2]
[311276403,1705011038268,-55579.95380816,0.00011004,2]
[311276405,1705011038277,-270787.85398816,0.00011004,2]
[311276407,1705011038287,-521.18657264,0.00011004,2]
[311276409,1705011038296,-155.0480649,0.00011005,2]
[311276410,1705011038305,-2927.79076094,0.00011005,2]
[311276412,1705011038314,-155.0480649,0.00011005,2]
[311276414,1705011038324,-4789.41827786,0.00011005,2]
[311276416,1705011038333,-160.71702813,0.00011005,2]
[311276419,1705011038343,-7988.52269899,0.00011005,2]
[311276423,1705011038352,-20836.46606025,0.00011005,2]
[311276427,1705011038361,-678.90210458,0.00011005,2]
[311276429,1705011038371,-261.8211746,0.00011005,2]
[311276432,1705011038381,-36895.86463632,0.00011005,2]
[311276435,1705011038391,-322.47705028,0.00011006,2]
[311276439,1705011038400,-196.86070104,0.00011006,2]
[311276441,1705011038409,-295.59018367,0.00011006,2]
[311276442,1705011038419,-13694.49776337,0.00011006,2]
[311276445,1705011038429,-313.03128997,0.00011006,2]
[311276447,1705011038439,-155.0480649,0.00011006,2]
[311276450,1705011038448,-451.81472846,0.00011006,2]
[311276453,1705011038457,-15883.65187876,0.00011006,2]
[311276456,1705011038466,-15193.63475662,0.00011007,2]
[311276459,1705011038475,-1989.87267074,0.00011007,2]
[311276462,1705011038484,-242.63833742,0.00011007,2]
[311276465,1705011038493,-509.10030575,0.00011007,2]
[311276468,1705011038502,-155.0480649,0.00011009,2]
[311276471,1705011038511,-169.94995702,0.00011009,2]
[311276474,1705011038520,-155.05146051,0.00011051,2]
[311276477,1705011038529,-309.87604958,0.00011051,2]
[311276480,1705011038538,-309.89153874,0.00011051,2]
[311276483,1705011038546,-250.74190325,0.00011051,2]
[311276486,1705011038555,-2517.27565721,0.00011051,2]
[311276489,1705011038564,-642.93704766,0.00011051,2]
[311276491,1705011038572,-1692.86752358,0.00011051,2]
[311276493,1705011038581,-4006.72920618,0.00011052,2]
[311276495,1705011038590,-309.81411154,0.00011052,2]
[311276497,1705011038601,-309.86062544,0.00011067,2]
[311276499,1705011038610,-178.44106149,0.00011067,2]
[311276501,1705011038619,-155.04777018,0.00011067,2]
[311276503,1705011038628,-250.47516659,0.00011067,2]
[311276504,1705011038638,-400.02724112,0.00011067,2]
[311276506,1705011038647,-306.5657523,0.00011067,2]
[311276508,1705011038657,-215.64200685,0.00011068,2]
[311276511,1705011038667,-6602.15861025,0.00011068,2]
[311276512,1705011038676,-309.16953134,0.00011068,2]
[311276514,1705011038686,-310.00798648,0.00011068,2]
[311276516,1705011038694,-964.55150019,0.00011068,2]
[311276518,1705011038703,-176.51985459,0.00011068,2]
[311276520,1705011038712,-155.34159394,0.00011068,2]
[311276522,1705011038721,-360.80127126,0.00011068,2]
[311276524,1705011038730,-301.7285982,0.00011068,2]
[311276525,1705011038740,-155.53002517,0.00011068,2]
[311276526,1705011038749,-553.96762656,0.00011068,2]
[311276527,1705011038758,-309.78316417,0.00011068,2]
[311276528,1705011038769,-162.61777634,0.00011068,2]
[311276529,1705011038777,-191.01244923,0.00011068,2]
[311276530,1705011038787,-1250.39757004,0.00011069,2]
[311276532,1705011038796,-1647.46294033,0.00011069,2]
[311276534,1705011038805,-237.94121335,0.00011069,2]
[311276536,1705011038813,-221.97582673,0.00011069,2]
[311276537,1705011038823,-249.4328017,0.00011069,2]
[311276538,1705011038832,-155.14300858,0.00011069,2]
[311276539,1705011038841,-304.4646857,0.00011069,2]
[311276540,1705011038850,-215.9027007,0.00011069,2]
[311276541,1705011038860,-309.75221062,0.00011069,2]
[311276542,1705011038869,-2808.94906759,0.00011069,2]
[311276543,1705011038878,-189.52613459,0.00011073,2]
[311276544,1705011038887,-264.87381963,0.00011073,2]
[311276545,1705011038896,-214.58564958,0.00011073,2]
[311276546,1705011038905,-185.65689549,0.00011073,2]
[311276547,1705011038915,-323.37417016,0.00011073,2]
[311276548,1705011038924,-1232.27458544,0.00011239,2]
[311276550,1705011038934,-199.52290028,0.00011239,2]
[311276551,1705011038943,-167.83694434,0.0001124,2]
[311276552,1705011038952,-239.43795518,0.0001124,2]
[311276553,1705011038961,-282.56121866,0.0001124,2]
[311276554,1705011038970,-155.04496304,0.00011242,2]
[311276555,1705011038980,-469.71701685,0.00011243,2]
[311276556,1705011038989,-521.43346448,0.00011243,2]
[311276557,1705011038999,-2070.70229933,0.00011243,2]
[311276558,1705011039007,-200.0,0.00012129,2]
[311276559,1705011039019,-309.86060067,0.00012242,2]
[311276560,1705011039029,-155.14313428,0.000129,2]
[311276561,1705011039038,-860.94215638,0.00013,2]
[311276562,1705011039046,-280.0,0.00013342,2]
[311276563,1705011039055,-282.92595231,0.0001369,2]
[311276564,1705011039064,-4178.6254779,0.00013699,2]
[311276565,1705011039073,-5000.0,0.00013699,2]
[311276566,1705011039083,-2388.627357,0.00013699,2]
[311276567,1705011039092,-391.0,0.00014677,2]
[311276568,1705011039102,-200.30750064,0.000149,2]
[311276569,1705011039111,-155.04651395,0.00015,2]
[311276570,1705011039123,-686.6489252,0.00015,2]
[311276571,1705011039132,-2698.75957629,0.00015,2]
[311276572,1705011039141,-155.04031048,0.00015,2]
[311276573,1705011039150,-155.04651395,0.00015,2]
[311276574,1705011039159,-1284.2876522,0.00015342,2]
[311276575,1705011039169,-307.19827036,0.0001536,2]
[311276576,1705011039178,-200.0,0.00016144,2]
[311276577,1705011039187,-348.0,0.00016144,2]
[311276578,1705011039196,-272.00985266,0.000165,2]
[311276579,1705011039205,-872.72571525,0.00017235,2]
[311276580,1705011039214,-200.0,0.00017759,2]
[311276581,1705011039223,-200.0,0.00017759,2]
[311276582,1705011039232,-368.0,0.00017759,2]
[311276583,1705011039242,-246.10686283,0.000178,2]
[311276584,1705011039251,-10503.19627673,0.00017898,2]
[311276585,1705011039261,-155.18321527,0.00018,2]
[311276586,1705011039269,-266.51885181,0.000189,2]
[311276587,1705011039278,-1578.97802722,0.00019,2]
[311276588,1705011039287,-165.821984,0.00019178,2]
[311276589,1705011039297,-169.4489,0.00019178,2]
[311276590,1705011039306,-1112.22182837,0.000195,2]
[311276591,1705011039315,-351.0,0.00019534,2]
[311276592,1705011039325,-307.19827036,0.00019802,2]
[311276593,1705011039336,-155.03255684,0.0002,2]
[311276594,1705011039345,-155.03255684,0.0002,2]
[311276595,1705011039354,-155.0310062,0.0002,2]
[311276596,1705011039363,-569.37401545,0.0002,2]
[311276597,1705011039372,-677.0708176,0.0002,2]
[311276598,1705011039382,-266.37190097,0.0002,2]
[311276599,1705011039392,-155.04031048,0.0002,2]
[311276600,1705011039401,-315.48561899,0.0002,2]
[311276601,1705011039410,-314.30408612,0.0002,2]
[311276602,1705011039420,-1195.27282006,0.0002,2]
[311276603,1705011039429,-853.72221584,0.0002,2]
[311276604,1705011039438,-156.28845056,0.0002,2]
[311276605,1705011039447,-151.60611518,0.0002,2]
[311276606,1705011039456,-4321.40443,0.0002,2]
[311276607,1705011039465,-4321.40443,0.0002,2]
[311276608,1705011039474,-4321.40443,0.0002,2]
[311276609,1705011039483,-4321.40443,0.0002,2]
[311276610,1705011039493,-4321.40443,0.0002,2]
[311276611,1705011039502,-2388.627357,0.00020548,2]
[311276612,1705011039511,-232.56616313,0.00021,2]
[311276613,1705011039520,-21896.11056994,0.00021,2]
[311276614,1705011039529,-478.51187948,0.00021,2]
[311276615,1705011039538,-166.666666,0.00021918,2]
[311276616,1705011039549,-3083.76102233,0.00022,2]
[311276617,1705011039559,-2076.82617599,0.00022,2]
[311276618,1705011039570,-155.11478494,0.00022,2]
[311276619,1705011039579,-296.02443686,0.00022,2]
[311276620,1705011039589,-166.666666,0.00022431,2]
[311276621,1705011039598,-166.666666,0.00022944,2]
[311276622,1705011039607,-2093.45221107,0.00023,2]
[311276623,1705011039616,-9923.17263833,0.00023,2]
[311276624,1705011039626,-166.666666,0.00023456,2]
[311276625,1705011039635,-266.51885181,0.000239,2]
[311276626,1705011039645,-166.666666,0.00023969,2]
[311276627,1705011039654,-614.12133667,0.00024,2]
[311276628,1705011039663,-4005.39956635,0.00024,2]
[311276629,1705011039672,-307.19827036,0.00024243,2]
[311276630,1705011039681,-166.666666,0.00024482,2]
[311276631,1705011039690,-687.75702701,0.000247,2]
[311276632,1705011039699,-244.2200595,0.00025,2]
[311276633,1705011039709,-628.01534016,0.00025,2]
[311276634,1705011039721,-155.03255684,0.00025,2]
[311276635,1705011039731,-4711.91259146,0.00025,2]
[311276636,1705011039740,-1538.8709927,0.00025,2]
[311276637,1705011039749,-11112.72555882,0.00025,2]
[311276638,1705011039758,-1000.02429818,0.00025,2]
[311276639,1705011039768,-2000.0,0.00025,2]
[311276640,1705011039778,-257.19576168,0.00025,2]
[311276641,1705011039787,-2000.0,0.0002501,2]
[311276642,1705011039796,-2000.0,0.0002502,2]
[311276643,1705011039805,-2000.0,0.0002503,2]
[311276644,1705011039813,-2000.0,0.0002504,2]
[311276645,1705011039822,-2000.0,0.0002505,2]
[311276646,1705011039831,-2000.0,0.0002506,2]
[311276647,1705011039841,-2000.0,0.0002507,2]
[311276648,1705011039850,-2000.0,0.0002508,2]
[311276649,1705011039859,-2000.0,0.0002509,2]
[311276650,1705011039868,-2000.0,0.000251,2]
[311276651,1705011039877,-2066.583364,0.0002511,2]
[311276652,1705011039886,-2093.74877759,0.00025297,2]
[311276653,1705011039895,-1822.05331204,0.000253,2]
[311276654,1705011039904,-546.87419273,0.000253,2]
[311276655,1705011039913,-622.93358991,0.000264,2]
[311276656,1705011039922,-155.0356582,0.00027,7]
[311276657,1705011039931,-460.6542226,0.00027,2]
[311276658,1705011039940,-9100.04106185,0.000273,4]
[311276659,1705011039949,-155.0,0.00027397,2]
[311276660,1705011039958,-323.71326909,0.00027397,2]
[311276661,1705011039967,-414.87912061,0.00027397,2]
[311276662,1705011039976,-1907.6379502,0.00027397,2]
[311276663,1705011039986,-151.04531359,0.00027583,4]
[311276664,1705011039995,-620.1466795,0.0002772,2]
[311276665,1705011040003,-177.62762777,0.000279,5]
[311276666,1705011040015,-177.62762777,0.000279,5]
[311276667,1705011040024,-283561.35337882,0.00028,7]
[311276668,1705011040033,-261.02565785,0.00028,2]
[311276669,1705011040042,-3314.01740452,0.00028,2]
[311276670,1705011040051,-305.07101819,0.00028,2]
[311276671,1705011040060,-483.61502924,0.00028,2]
[311276672,1705011040069,-200.0,0.00028,2]
[311276674,1705011040078,-2079.89647566,0.00028,2]
[311276675,1705011040087,-9297.49365479,0.00028,2]
[311276676,1705011040096,-237.60910002,0.00028,2]
[311276677,1705011040105,-3534.66452493,0.00028,9]
[311276678,1705011040114,-151.04531359,0.00028146,2]
[311276679,1705011040123,-222.683,0.00028147,2]
[311276680,1705011040134,-307.19827036,0.00028685,2]
[311276682,1705011040143,-10623.80376589,0.00028749,2]
[311276684,1705011040153,-155.0,0.00028767,2]
[311276686,1705011040164,-1522.34,0.00028784,2]
[311276688,1705011040173,-1522.34,0.00028784,2]
[311276690,1705011040183,-1522.34,0.00028784,2]
[311276692,1705011040192,-1522.34,0.00028784,2]
[311276695,1705011040201,-1522.34,0.00028784,2]
[311276697,1705011040210,-1522.34,0.00028784,2]
[311276700,1705011040219,-1522.34,0.00028784,2]
[311276703,1705011040228,-1522.34,0.00028784,2]
[311276705,1705011040237,-1522.34,0.00028784,2]
[311276707,1705011040246,-1522.34,0.00028784,2]
[311276724,1705011040255,-12483.57402509,0.00028785,4]
[311276726,1705011040360,-50000.0,0.00028785,3]
[311276728,1705011040369,-50000.0,0.00028785,3]
[311276730,1705011040378,-96869.74547251,0.00028785,4]
[311276732,1705011040387,-177.62,0.000289,5]
[311276734,1705011040396,-266.51885181,0.000289,2]
[311276736,1705011040405,-155.0356582,0.00029,2]
[311276738,1705011040414,-3025.449916,0.00029,2]
[311276740,1705011040424,-118637.29995858,0.00029,2]
[311276742,1705011040433,-79469.02841882,0.00029,2]
[311276744,1705011040442,-620.00733397,0.00029106,2]
[311276746,1705011040451,-155.78182122,0.00029125,2]